[Event "Titled Tuesday Blitz December 27 Late 2022"]
[White "Guevara Sanchez, Erick Marvin"]
[Black "Bilan, Danila"]
[WhiteFideId "6700136"]
[BlackFideId "24161918"]
[WhiteElo "2073"]
[BlackElo "2303"]
[Result "0-1"]
[Round "01"]
[TimeControl "180+2"]
[Date "2022.12.27"]
[WhiteClock "0:00:07"]
[BlackClock "0:00:14"]

1. e4 {[%clk 0:03:00]}  c6 {[%clk 0:02:58]} 2. d4 {[%clk 0:03:00]}  d5 {[%clk 0:02:59]} 3. exd5 {[%clk 0:03:01]}  cxd5 {[%clk 0:02:59]} 4. c4 {[%clk 0:03:01]}  Nf6 {[%clk 0:02:59]} 5. Nc3 {[%clk 0:03:02]}  Nc6 {[%clk 0:02:56]} 6. Nf3 {[%clk 0:03:01]}  Bg4 {[%clk 0:02:51]} 7. c5 {[%clk 0:02:56]}  e6 {[%clk 0:02:50]} 8. Be2 {[%clk 0:02:50]}  Ne4 {[%clk 0:02:44]} 9. h3 {[%clk 0:02:43]}  Bf5 {[%clk 0:02:36]} 10. Bd2 {[%clk 0:02:36]}  Be7 {[%clk 0:02:30]} 11. O-O {[%clk 0:02:32]}  O-O {[%clk 0:02:28]} 12. a3 {[%clk 0:02:30]}  Bf6 {[%clk 0:02:21]} 13. Be3 {[%clk 0:02:25]}  Nxc3 {[%clk 0:02:16]} 14. bxc3 {[%clk 0:02:25]}  b6 {[%clk 0:02:16]} 15. cxb6 {[%clk 0:02:25]}  axb6 {[%clk 0:02:03]} 16. c4 {[%clk 0:02:19]}  Na5 {[%clk 0:01:49]} 17. cxd5 {[%clk 0:02:14]}  Qxd5 {[%clk 0:01:43]} 18. g4 {[%clk 0:01:57]}  Bg6 {[%clk 0:01:33]} 19. g5 {[%clk 0:01:57]}  Be7 {[%clk 0:01:27]} 20. Ne5 {[%clk 0:01:57]}  Rad8 {[%clk 0:01:02]} 21. h4 {[%clk 0:01:26]}  Be4 {[%clk 0:00:53]} 22. f3 {[%clk 0:01:25]}  Bf5 {[%clk 0:00:50]} 23. Bd3 {[%clk 0:01:14]}  Bxd3 {[%clk 0:00:41]} 24. Nxd3 {[%clk 0:01:14]}  Nb3 {[%clk 0:00:38]} 25. Nb4 {[%clk 0:01:04]}  Bxb4 {[%clk 0:00:36]} 26. axb4 {[%clk 0:01:01]}  Nxa1 {[%clk 0:00:36]} 27. Qxa1 {[%clk 0:01:01]}  Ra8 {[%clk 0:00:35]} 28. Qc3 {[%clk 0:01:00]}  Rfc8 {[%clk 0:00:34]} 29. Qd3 {[%clk 0:01:00]}  Ra2 {[%clk 0:00:28]} 30. Bf4 {[%clk 0:00:41]}  Rc4 {[%clk 0:00:21]} 31. Be5 {[%clk 0:00:39]}  b5 {[%clk 0:00:12]} 32. Kh1 {[%clk 0:00:28]}  Rxb4 {[%clk 0:00:12]} 33. Qc3 {[%clk 0:00:27]}  Rc4 {[%clk 0:00:12]} 34. Qb3 {[%clk 0:00:27]}  Ra8 {[%clk 0:00:08]} 35. Qe3 {[%clk 0:00:21]}  b4 {[%clk 0:00:07]} 36. Qe4 {[%clk 0:00:18]}  Qxe4 {[%clk 0:00:07]} 37. fxe4 {[%clk 0:00:19]}  b3 {[%clk 0:00:07]} 38. Rb1 {[%clk 0:00:18]}  Rb4 {[%clk 0:00:07]} 39. d5 {[%clk 0:00:17]}  Rxe4 {[%clk 0:00:07]} 40. Bc3 {[%clk 0:00:13]}  Rxh4+ {[%clk 0:00:07]} 41. Kg2 {[%clk 0:00:12]}  Ra2+ {[%clk 0:00:06]} 42. Kg3 {[%clk 0:00:12]}  Rah2 {[%clk 0:00:03]} 43. Rxb3 {[%clk 0:00:10]}  R2h3+ {[%clk 0:00:03]} 44. Kg2 {[%clk 0:00:09]}  h6 {[%clk 0:00:04]} 45. gxh6 {[%clk 0:00:09]}  gxh6 {[%clk 0:00:04]} 46. Rb8+ {[%clk 0:00:08]}  Kh7 {[%clk 0:00:05]} 47. Rh8+ {[%clk 0:00:08]}  Kg6 {[%clk 0:00:05]} 48. Rg8+ {[%clk 0:00:08]}  Kf5 {[%clk 0:00:05]} 49. Rf8 {[%clk 0:00:07]}  Rxc3 {[%clk 0:00:05]} 50. Rxf7+ {[%clk 0:00:07]}  Ke5 {[%clk 0:00:06]} 51. dxe6 {[%clk 0:00:06]}  Kxe6 {[%clk 0:00:06]} 52. Rf8 {[%clk 0:00:06]}  Rc5 {[%clk 0:00:06]} 53. Re8+ {[%clk 0:00:06]}  Kf5 {[%clk 0:00:06]} 54. Rf8+ {[%clk 0:00:06]}  Kg6 {[%clk 0:00:06]} 55. Rg8+ {[%clk 0:00:06]}  Kh5 {[%clk 0:00:07]} 56. Re8 {[%clk 0:00:06]}  Rg5+ {[%clk 0:00:08]} 57. Kf2 {[%clk 0:00:05]}  Rh3 {[%clk 0:00:08]} 58. Re4 {[%clk 0:00:04]}  Ra5 {[%clk 0:00:08]} 59. Rf4 {[%clk 0:00:03]}  Rb3 {[%clk 0:00:07]} 60. Kg2 {[%clk 0:00:02]}  Ra2+ {[%clk 0:00:08]} 61. Rf2 {[%clk 0:00:03]}  Rxf2+ {[%clk 0:00:07]} 62. Kxf2 {[%clk 0:00:04]}  Kh4 {[%clk 0:00:07]} 63. Kg2 {[%clk 0:00:04]}  Rh3 {[%clk 0:00:08]} 64. Kg1 {[%clk 0:00:04]}  Kg3 {[%clk 0:00:08]} 65. Kf1 {[%clk 0:00:04]}  Rh2 {[%clk 0:00:09]} 66. Ke1 {[%clk 0:00:04]}  h5 {[%clk 0:00:10]} 67. Kf1 {[%clk 0:00:04]}  Rg2 {[%clk 0:00:10]} 68. Ke1 {[%clk 0:00:05]}  h4 {[%clk 0:00:11]} 69. Kd1 {[%clk 0:00:06]}  h3 {[%clk 0:00:12]} 70. Kc1 {[%clk 0:00:06]}  h2 {[%clk 0:00:13]} 71. Kd1 {[%clk 0:00:07]}  h1=Q# {[%clk 0:00:14]} 0-1


[Site "https://www.chess.com"]

[Event "Titled Tuesday Blitz December 27 Late 2022"]
[White "Haraguchi, Diego Sashaki"]
[Black "Averjanov, Alexey"]
[WhiteFideId "22729925"]
[BlackFideId "14109867"]
[WhiteElo "2015"]
[BlackElo "2399"]
[Result "0-1"]
[Round "01"]
[TimeControl "180+2"]
[Date "2022.12.27"]
[WhiteClock "0:00:51"]
[BlackClock "0:01:39"]

1. d4 {[%clk 0:03:00]}  d5 {[%clk 0:02:59]} 2. c4 {[%clk 0:03:00]}  dxc4 {[%clk 0:02:59]} 3. Nf3 {[%clk 0:03:01]}  Nf6 {[%clk 0:02:58]} 4. e3 {[%clk 0:03:02]}  e6 {[%clk 0:02:58]} 5. Bxc4 {[%clk 0:03:01]}  a6 {[%clk 0:02:58]} 6. a4 {[%clk 0:03:00]}  c5 {[%clk 0:02:57]} 7. O-O {[%clk 0:03:00]}  Nc6 {[%clk 0:02:57]} 8. b3 {[%clk 0:02:59]}  cxd4 {[%clk 0:02:57]} 9. exd4 {[%clk 0:02:57]}  Be7 {[%clk 0:02:56]} 10. Bb2 {[%clk 0:02:57]}  O-O {[%clk 0:02:55]} 11. Nbd2 {[%clk 0:02:56]}  b6 {[%clk 0:02:54]} 12. Ne5 {[%clk 0:02:55]}  Bb7 {[%clk 0:02:49]} 13. Ndf3 {[%clk 0:02:53]}  Nb4 {[%clk 0:02:46]} 14. Rc1 {[%clk 0:02:50]}  Rc8 {[%clk 0:02:43]} 15. Qe2 {[%clk 0:02:47]}  a5 {[%clk 0:02:43]} 16. Rfd1 {[%clk 0:02:42]}  Nbd5 {[%clk 0:02:42]} 17. g3 {[%clk 0:02:40]}  Rc7 {[%clk 0:02:41]} 18. Qd2 {[%clk 0:02:19]}  Qd6 {[%clk 0:02:35]} 19. Bf1 {[%clk 0:02:18]}  Rfc8 {[%clk 0:02:34]} 20. Rxc7 {[%clk 0:02:12]}  Rxc7 {[%clk 0:02:35]} 21. Rc1 {[%clk 0:02:12]}  Rxc1 {[%clk 0:02:23]} 22. Qxc1 {[%clk 0:02:09]}  h6 {[%clk 0:02:22]} 23. Nc4 {[%clk 0:02:06]}  Qc7 {[%clk 0:02:21]} 24. Ba3 {[%clk 0:01:56]}  Bxa3 {[%clk 0:02:19]} 25. Qxa3 {[%clk 0:01:55]}  Nb4 {[%clk 0:02:19]} 26. Bg2 {[%clk 0:01:47]}  Bd5 {[%clk 0:02:19]} 27. Qc1 {[%clk 0:01:42]}  Nd7 {[%clk 0:02:12]} 28. Nfe5 {[%clk 0:01:39]}  Bxg2 {[%clk 0:02:10]} 29. Kxg2 {[%clk 0:01:33]}  Nf6 {[%clk 0:02:09]} 30. Qe3 {[%clk 0:01:23]}  Nfd5 {[%clk 0:02:05]} 31. Qf3 {[%clk 0:01:21]}  Nc6 {[%clk 0:02:05]} 32. Ne3 {[%clk 0:01:15]}  Nxe5 {[%clk 0:02:01]} 33. Nxd5 {[%clk 0:01:08]}  Nxf3 {[%clk 0:01:59]} 34. Nxc7 {[%clk 0:01:07]}  Nxd4 {[%clk 0:02:00]} 35. Na8 {[%clk 0:01:05]}  b5 {[%clk 0:01:52]} 36. Nc7 {[%clk 0:01:02]}  b4 {[%clk 0:01:49]} 37. Nb5 {[%clk 0:00:51]}  Nxb3 {[%clk 0:01:47]} 38. Nd6 {[%clk 0:00:51]}  Nc5 {[%clk 0:01:45]} 39. Nc4 {[%clk 0:00:51]}  b3 {[%clk 0:01:40]} 40. Kf3 {[%clk 0:00:52]}  Nxa4 {[%clk 0:01:40]} 41. Ke2 {[%clk 0:00:52]}  b2 {[%clk 0:01:40]} 42. Kd2 {[%clk 0:00:51]}  b1=Q {[%clk 0:01:39]} 0-1


[Site "https://www.chess.com"]

[Event "Titled Tuesday Blitz December 27 Late 2022"]
[White "Jaracz, Pawel"]
[Black "Hoffmann, Asa"]
[WhiteFideId "1102222"]
[BlackFideId "2001470"]
[WhiteElo "2467"]
[BlackElo "2185"]
[Result "1-0"]
[Round "01"]
[TimeControl "180+2"]
[Date "2022.12.27"]
[WhiteClock "0:00:12"]
[BlackClock "0:00:01"]

1. e4 {[%clk 0:02:59]}  d6 {[%clk 0:02:57]} 2. d4 {[%clk 0:02:59]}  Nf6 {[%clk 0:02:54]} 3. Nc3 {[%clk 0:02:59]}  c6 {[%clk 0:02:53]} 4. Nf3 {[%clk 0:02:57]}  Bg4 {[%clk 0:02:52]} 5. Be3 {[%clk 0:02:56]}  e6 {[%clk 0:02:52]} 6. h3 {[%clk 0:02:55]}  Bh5 {[%clk 0:02:52]} 7. g4 {[%clk 0:02:50]}  Bg6 {[%clk 0:02:51]} 8. Nd2 {[%clk 0:02:51]}  d5 {[%clk 0:02:51]} 9. e5 {[%clk 0:02:50]}  Nfd7 {[%clk 0:02:50]} 10. Bd3 {[%clk 0:02:26]}  c5 {[%clk 0:02:50]} 11. dxc5 {[%clk 0:02:17]}  Nxc5 {[%clk 0:02:41]} 12. Nf3 {[%clk 0:02:03]}  Nxd3+ {[%clk 0:02:37]} 13. cxd3 {[%clk 0:02:03]}  Nc6 {[%clk 0:02:36]} 14. Ne2 {[%clk 0:01:54]}  Bb4+ {[%clk 0:02:31]} 15. Kf1 {[%clk 0:01:54]}  Be7 {[%clk 0:02:19]} 16. Nf4 {[%clk 0:01:51]}  Qc7 {[%clk 0:02:13]} 17. Rc1 {[%clk 0:01:45]}  Qa5 {[%clk 0:02:05]} 18. a3 {[%clk 0:01:44]}  d4 {[%clk 0:01:56]} 19. Bd2 {[%clk 0:01:31]}  Qb5 {[%clk 0:01:45]} 20. Kg2 {[%clk 0:01:27]}  O-O {[%clk 0:01:34]} 21. a4 {[%clk 0:01:17]}  Qb6 {[%clk 0:01:30]} 22. h4 {[%clk 0:01:15]}  h5 {[%clk 0:01:27]} 23. gxh5 {[%clk 0:01:15]}  Bf5 {[%clk 0:01:24]} 24. Kh2 {[%clk 0:00:51]}  Rad8 {[%clk 0:01:22]} 25. Rg1 {[%clk 0:00:51]}  Kh8 {[%clk 0:01:19]} 26. Qe2 {[%clk 0:00:39]}  Nb4 {[%clk 0:00:58]} 27. Rg3 {[%clk 0:00:35]}  Rc8 {[%clk 0:00:54]} 28. Rcg1 {[%clk 0:00:34]}  Rg8 {[%clk 0:00:54]} 29. Bxb4 {[%clk 0:00:33]}  Qxb4 {[%clk 0:00:51]} 30. Ng5 {[%clk 0:00:34]}  Bxg5 {[%clk 0:00:49]} 31. Rxg5 {[%clk 0:00:33]}  Qxa4 {[%clk 0:00:43]} 32. Qf3 {[%clk 0:00:27]}  Qc2 {[%clk 0:00:39]} 33. Qg3 {[%clk 0:00:27]}  g6 {[%clk 0:00:35]} 34. hxg6 {[%clk 0:00:27]}  fxg6 {[%clk 0:00:34]} 35. h5 {[%clk 0:00:23]}  Rc7 {[%clk 0:00:27]} 36. hxg6 {[%clk 0:00:22]}  Kg7 {[%clk 0:00:25]} 37. Rxf5 {[%clk 0:00:16]}  Re8 {[%clk 0:00:09]} 38. Rh5 {[%clk 0:00:15]}  Kg8 {[%clk 0:00:07]} 39. g7 {[%clk 0:00:14]}  Kf7 {[%clk 0:00:01]} 40. Qg6+ {[%clk 0:00:14]}  Ke7 {[%clk 0:00:01]} 41. Qxe6+ {[%clk 0:00:13]}  Kd8 {[%clk 0:00:01]} 42. Qxe8+ {[%clk 0:00:13]}  Kxe8 {[%clk 0:00:01]} 43. g8=Q+ {[%clk 0:00:13]}  Kd7 {[%clk 0:00:01]} 44. Qd5+ {[%clk 0:00:12]} 1-0


[Site "https://www.chess.com"]

[Event "Titled Tuesday Blitz December 27 Late 2022"]
[White "Jenkins, Drake"]
[Black "Mendez Fortes, Eduardo Jesus"]
[WhiteFideId "2022397"]
[BlackFideId "3502376"]
[WhiteElo "2130"]
[BlackElo "2250"]
[Result "1-0"]
[Round "01"]
[TimeControl "180+2"]
[Date "2022.12.27"]
[WhiteClock "0:00:04"]
[BlackClock "0:00:18"]

1. Nf3 {[%clk 0:02:56]}  d5 {[%clk 0:02:59]} 2. c4 {[%clk 0:02:54]}  e6 {[%clk 0:02:59]} 3. g3 {[%clk 0:02:54]}  Nf6 {[%clk 0:02:59]} 4. Bg2 {[%clk 0:02:53]}  d4 {[%clk 0:02:57]} 5. O-O {[%clk 0:02:51]}  Be7 {[%clk 0:02:57]} 6. e3 {[%clk 0:02:47]}  c5 {[%clk 0:02:57]} 7. b4 {[%clk 0:02:47]}  Nc6 {[%clk 0:02:56]} 8. b5 {[%clk 0:02:45]}  Na5 {[%clk 0:02:56]} 9. exd4 {[%clk 0:02:40]}  cxd4 {[%clk 0:02:56]} 10. d3 {[%clk 0:02:40]}  O-O {[%clk 0:02:55]} 11. Bd2 {[%clk 0:02:33]}  Rb8 {[%clk 0:02:49]} 12. Qe1 {[%clk 0:02:17]}  b6 {[%clk 0:02:49]} 13. Bxa5 {[%clk 0:02:17]}  bxa5 {[%clk 0:02:49]} 14. Ne5 {[%clk 0:02:14]}  Bb7 {[%clk 0:02:42]} 15. Bxb7 {[%clk 0:02:05]}  Rxb7 {[%clk 0:02:40]} 16. Nc6 {[%clk 0:02:05]}  Qb6 {[%clk 0:02:40]} 17. Qxa5 {[%clk 0:02:05]}  Qxa5 {[%clk 0:02:30]} 18. Nxa5 {[%clk 0:02:05]}  Rc7 {[%clk 0:02:29]} 19. Nc6 {[%clk 0:01:57]}  Bc5 {[%clk 0:02:27]} 20. Nd2 {[%clk 0:01:56]}  a6 {[%clk 0:02:00]} 21. a4 {[%clk 0:01:50]}  axb5 {[%clk 0:01:41]} 22. axb5 {[%clk 0:01:50]}  Nd7 {[%clk 0:01:35]} 23. Nb3 {[%clk 0:01:47]}  Bb6 {[%clk 0:01:35]} 24. Ra6 {[%clk 0:01:08]}  f6 {[%clk 0:01:16]} 25. Ncxd4 {[%clk 0:00:57]}  Re8 {[%clk 0:01:10]} 26. Nc6 {[%clk 0:00:36]}  e5 {[%clk 0:01:02]} 27. Rfa1 {[%clk 0:00:30]}  Kf7 {[%clk 0:00:54]} 28. Kf1 {[%clk 0:00:28]}  Rec8 {[%clk 0:00:30]} 29. Nb4 {[%clk 0:00:22]}  Nc5 {[%clk 0:00:21]} 30. Nxc5 {[%clk 0:00:21]}  Bxc5 {[%clk 0:00:22]} 31. Nd5 {[%clk 0:00:19]}  Rd7 {[%clk 0:00:22]} 32. Rc6 {[%clk 0:00:17]}  Rdd8 {[%clk 0:00:22]} 33. Raa6 {[%clk 0:00:15]}  Bd4 {[%clk 0:00:21]} 34. Ke2 {[%clk 0:00:13]}  Rb8 {[%clk 0:00:19]} 35. g4 {[%clk 0:00:12]}  h6 {[%clk 0:00:18]} 36. Kf3 {[%clk 0:00:12]}  Kg6 {[%clk 0:00:19]} 37. h3 {[%clk 0:00:10]}  h5 {[%clk 0:00:19]} 38. Ne7+ {[%clk 0:00:09]}  Kf7 {[%clk 0:00:18]} 39. Nf5 {[%clk 0:00:07]}  Bc3 {[%clk 0:00:17]} 40. Rc7+ {[%clk 0:00:04]}  Kf8 {[%clk 0:00:18]} 41. Raa7 {[%clk 0:00:03]}  Rxd3+ {[%clk 0:00:17]} 42. Kg2 {[%clk 0:00:04]}  Bb4 {[%clk 0:00:17]} 43. Rf7+ {[%clk 0:00:04]}  Ke8 {[%clk 0:00:17]} 44. Rxg7 {[%clk 0:00:04]}  Bf8 {[%clk 0:00:17]} 45. Rg8 {[%clk 0:00:04]}  hxg4 {[%clk 0:00:17]} 46. Ng7+ {[%clk 0:00:04]}  Kd8 {[%clk 0:00:18]} 47. Rxf8# {[%clk 0:00:04]} 1-0


[Site "https://www.chess.com"]

[Event "Titled Tuesday Blitz December 27 Late 2022"]
[White "Jones, Gawain C B"]
[Black "Kleinman, Michael"]
[WhiteFideId "409561"]
[BlackFideId "2609479"]
[WhiteElo "2618"]
[BlackElo "2387"]
[Result "1-0"]
[Round "01"]
[TimeControl "180+2"]
[Date "2022.12.27"]
[WhiteClock "0:01:00"]
[BlackClock "0:00:03"]

1. Nf3 {[%clk 0:02:57]}  c5 {[%clk 0:02:59]} 2. c4 {[%clk 0:02:57]}  Nf6 {[%clk 0:02:55]} 3. Nc3 {[%clk 0:02:57]}  Nc6 {[%clk 0:02:55]} 4. d4 {[%clk 0:02:57]}  cxd4 {[%clk 0:02:55]} 5. Nxd4 {[%clk 0:02:58]}  e6 {[%clk 0:02:52]} 6. Bf4 {[%clk 0:02:57]}  a6 {[%clk 0:02:23]} 7. e3 {[%clk 0:02:49]}  Be7 {[%clk 0:02:23]} 8. Bd3 {[%clk 0:02:48]}  O-O {[%clk 0:02:22]} 9. O-O {[%clk 0:02:48]}  d6 {[%clk 0:02:13]} 10. h3 {[%clk 0:02:46]}  e5 {[%clk 0:02:05]} 11. Nxc6 {[%clk 0:02:46]}  bxc6 {[%clk 0:02:06]} 12. Bh2 {[%clk 0:02:46]}  Be6 {[%clk 0:02:04]} 13. c5 {[%clk 0:02:46]}  d5 {[%clk 0:01:25]} 14. Bxe5 {[%clk 0:02:44]}  Bxc5 {[%clk 0:01:25]} 15. Na4 {[%clk 0:02:35]}  Bd6 {[%clk 0:01:20]} 16. Bxd6 {[%clk 0:02:35]}  Qxd6 {[%clk 0:01:21]} 17. Rc1 {[%clk 0:02:35]}  Rfc8 {[%clk 0:01:17]} 18. Nc5 {[%clk 0:02:34]}  a5 {[%clk 0:01:16]} 19. Qc2 {[%clk 0:02:30]}  h6 {[%clk 0:01:13]} 20. Rfe1 {[%clk 0:02:21]}  Nd7 {[%clk 0:01:07]} 21. Nxe6 {[%clk 0:02:20]}  fxe6 {[%clk 0:01:05]} 22. e4 {[%clk 0:02:20]}  Ne5 {[%clk 0:00:57]} 23. Bf1 {[%clk 0:02:14]}  d4 {[%clk 0:00:55]} 24. f4 {[%clk 0:02:09]}  Nd7 {[%clk 0:00:45]} 25. e5 {[%clk 0:02:07]}  Qe7 {[%clk 0:00:35]} 26. f5 {[%clk 0:01:52]}  exf5 {[%clk 0:00:32]} 27. Qxf5 {[%clk 0:01:52]}  c5 {[%clk 0:00:28]} 28. Bc4+ {[%clk 0:01:43]}  Kh8 {[%clk 0:00:27]} 29. Bd3 {[%clk 0:01:44]}  Nf8 {[%clk 0:00:27]} 30. e6 {[%clk 0:01:42]}  Rab8 {[%clk 0:00:17]} 31. b3 {[%clk 0:01:41]}  Rb6 {[%clk 0:00:17]} 32. Re5 {[%clk 0:01:22]}  Rcc6 {[%clk 0:00:11]} 33. Rf1 {[%clk 0:01:19]}  Rb8 {[%clk 0:00:08]} 34. Bc4 {[%clk 0:01:08]}  Nh7 {[%clk 0:00:05]} 35. Qf7 {[%clk 0:01:07]}  Qxf7 {[%clk 0:00:03]} 36. Rxf7 {[%clk 0:01:00]} 1-0


[Site "https://www.chess.com"]

[Event "Titled Tuesday Blitz December 27 Late 2022"]
[White "Kaganskiy, Gleb"]
[Black "Cremisi, Daniel"]
[WhiteFideId "4132025"]
[BlackFideId "2089882"]
[WhiteElo "2205"]
[BlackElo "2170"]
[Result "1-0"]
[Round "01"]
[TimeControl "180+2"]
[Date "2022.12.27"]
[WhiteClock "0:00:17"]
[BlackClock "0:00:25"]

1. e4 {[%clk 0:02:55]}  e6 {[%clk 0:02:59]} 2. d4 {[%clk 0:02:52]}  d5 {[%clk 0:03:00]} 3. Nd2 {[%clk 0:02:53]}  a6 {[%clk 0:03:00]} 4. Ngf3 {[%clk 0:02:51]}  Nf6 {[%clk 0:03:00]} 5. e5 {[%clk 0:02:50]}  Nfd7 {[%clk 0:03:00]} 6. c3 {[%clk 0:02:42]}  c5 {[%clk 0:03:00]} 7. Bd3 {[%clk 0:02:41]}  Nc6 {[%clk 0:03:00]} 8. O-O {[%clk 0:02:39]}  g5 {[%clk 0:03:00]} 9. Nb3 {[%clk 0:02:31]}  h6 {[%clk 0:02:59]} 10. Nxc5 {[%clk 0:02:30]}  Nxc5 {[%clk 0:02:58]} 11. dxc5 {[%clk 0:02:31]}  Bxc5 {[%clk 0:02:59]} 12. b4 {[%clk 0:02:27]}  Ba7 {[%clk 0:02:58]} 13. Re1 {[%clk 0:02:05]}  Bd7 {[%clk 0:02:57]} 14. a3 {[%clk 0:01:58]}  Qc7 {[%clk 0:02:57]} 15. Bb2 {[%clk 0:01:31]}  g4 {[%clk 0:02:50]} 16. Nd4 {[%clk 0:01:30]}  Nxe5 {[%clk 0:02:47]} 17. Kh1 {[%clk 0:01:19]}  Rg8 {[%clk 0:02:43]} 18. f4 {[%clk 0:01:15]}  gxf3 {[%clk 0:02:35]} 19. Nxf3 {[%clk 0:01:13]}  Ng4 {[%clk 0:02:31]} 20. Re2 {[%clk 0:01:00]}  Nf2+ {[%clk 0:02:31]} 21. Rxf2 {[%clk 0:01:00]}  Bxf2 {[%clk 0:02:30]} 22. Qe2 {[%clk 0:01:01]}  Ba7 {[%clk 0:02:30]} 23. Ne5 {[%clk 0:00:59]}  Bb8 {[%clk 0:02:29]} 24. c4 {[%clk 0:00:57]}  dxc4 {[%clk 0:02:22]} 25. Bxc4 {[%clk 0:00:55]}  Bc6 {[%clk 0:02:18]} 26. Rg1 {[%clk 0:00:48]}  Ba7 {[%clk 0:02:16]} 27. Nxf7 {[%clk 0:00:36]}  Bxg1 {[%clk 0:02:11]} 28. Qxe6+ {[%clk 0:00:32]}  Kf8 {[%clk 0:01:31]} 29. Qxh6+ {[%clk 0:00:31]}  Ke8 {[%clk 0:01:27]} 30. Qe6+ {[%clk 0:00:30]}  Kf8 {[%clk 0:01:24]} 31. Qh6+ {[%clk 0:00:30]}  Ke8 {[%clk 0:01:02]} 32. Nd6+ {[%clk 0:00:19]}  Kd7 {[%clk 0:00:27]} 33. Qe6+ {[%clk 0:00:17]}  Kd8 {[%clk 0:00:25]} 34. Bf6+ {[%clk 0:00:17]} 1-0


[Site "https://www.chess.com"]

[Event "Titled Tuesday Blitz December 27 Late 2022"]
[White "Kleiman, Jake"]
[Black "Eggleston, Thomas A"]
[WhiteFideId "2020041"]
[BlackFideId "412139"]
[WhiteElo "2399"]
[BlackElo "2215"]
[Result "1-0"]
[Round "01"]
[TimeControl "180+2"]
[Date "2022.12.27"]
[WhiteClock "0:01:02"]
[BlackClock "0:00:02"]

1. e4 {[%clk 0:02:58]}  e6 {[%clk 0:03:00]} 2. d3 {[%clk 0:02:58]}  c5 {[%clk 0:02:58]} 3. Nf3 {[%clk 0:02:57]}  Nc6 {[%clk 0:02:58]} 4. g3 {[%clk 0:02:56]}  g6 {[%clk 0:02:56]} 5. Bg5 {[%clk 0:02:54]}  f6 {[%clk 0:02:48]} 6. Be3 {[%clk 0:02:54]}  d6 {[%clk 0:02:46]} 7. Bg2 {[%clk 0:02:53]}  Nge7 {[%clk 0:02:43]} 8. O-O {[%clk 0:02:53]}  e5 {[%clk 0:02:30]} 9. c3 {[%clk 0:02:53]}  Bg7 {[%clk 0:02:26]} 10. d4 {[%clk 0:02:54]}  cxd4 {[%clk 0:02:17]} 11. cxd4 {[%clk 0:02:53]}  O-O {[%clk 0:02:11]} 12. Nc3 {[%clk 0:02:53]}  f5 {[%clk 0:02:06]} 13. dxe5 {[%clk 0:02:46]}  dxe5 {[%clk 0:01:59]} 14. Qb3+ {[%clk 0:02:36]}  Kh8 {[%clk 0:01:58]} 15. Ng5 {[%clk 0:02:36]}  Qe8 {[%clk 0:01:58]} 16. Ne6 {[%clk 0:02:18]}  Bxe6 {[%clk 0:01:57]} 17. Qxe6 {[%clk 0:02:19]}  f4 {[%clk 0:01:57]} 18. Bc5 {[%clk 0:02:18]}  Rf6 {[%clk 0:01:51]} 19. Qb3 {[%clk 0:02:16]}  f3 {[%clk 0:01:51]} 20. Bh3 {[%clk 0:02:16]}  b6 {[%clk 0:01:42]} 21. Be3 {[%clk 0:02:13]}  Nd4 {[%clk 0:01:41]} 22. Bxd4 {[%clk 0:01:59]}  exd4 {[%clk 0:01:41]} 23. Nd5 {[%clk 0:01:49]}  Nxd5 {[%clk 0:01:39]} 24. exd5 {[%clk 0:01:47]}  Qf8 {[%clk 0:01:28]} 25. Rfe1 {[%clk 0:01:42]}  Rd6 {[%clk 0:01:13]} 26. Re4 {[%clk 0:01:35]}  Rad8 {[%clk 0:00:52]} 27. Be6 {[%clk 0:01:35]}  g5 {[%clk 0:00:46]} 28. Rd1 {[%clk 0:01:29]}  h6 {[%clk 0:00:42]} 29. Rd3 {[%clk 0:01:28]}  Qe8 {[%clk 0:00:26]} 30. Rxf3 {[%clk 0:01:24]}  Qg6 {[%clk 0:00:21]} 31. Qd3 {[%clk 0:01:12]}  h5 {[%clk 0:00:17]} 32. h3 {[%clk 0:01:11]}  Qh6 {[%clk 0:00:13]} 33. Rf7 {[%clk 0:01:10]}  h4 {[%clk 0:00:11]} 34. g4 {[%clk 0:01:09]}  Qg6 {[%clk 0:00:02]} 35. Rf5 {[%clk 0:01:02]} 1-0


[Site "https://www.chess.com"]

[Event "Titled Tuesday Blitz December 27 Late 2022"]
[White "Kobo, Ori"]
[Black "Novikova, Galina"]
[WhiteFideId "2812320"]
[BlackFideId "4157095"]
[WhiteElo "2559"]
[BlackElo "2073"]
[Result "1-0"]
[Round "01"]
[TimeControl "180+2"]
[Date "2022.12.27"]
[WhiteClock "0:00:56"]
[BlackClock "0:00:00"]

1. Nf3 {[%clk 0:02:58]}  e6 {[%clk 0:02:59]} 2. c4 {[%clk 0:02:56]}  f5 {[%clk 0:02:59]} 3. g3 {[%clk 0:02:55]}  Nf6 {[%clk 0:03:00]} 4. Bg2 {[%clk 0:02:56]}  Be7 {[%clk 0:03:00]} 5. O-O {[%clk 0:02:56]}  d6 {[%clk 0:03:01]} 6. d4 {[%clk 0:02:54]}  O-O {[%clk 0:03:00]} 7. b3 {[%clk 0:02:54]}  Ne4 {[%clk 0:02:48]} 8. Bb2 {[%clk 0:02:54]}  Nd7 {[%clk 0:02:48]} 9. Nbd2 {[%clk 0:02:53]}  Ndf6 {[%clk 0:02:48]} 10. Ne1 {[%clk 0:02:52]}  a5 {[%clk 0:02:41]} 11. a3 {[%clk 0:02:45]}  b6 {[%clk 0:02:24]} 12. Nxe4 {[%clk 0:02:37]}  Nxe4 {[%clk 0:02:20]} 13. Nd3 {[%clk 0:02:27]}  Bf6 {[%clk 0:02:09]} 14. Qc2 {[%clk 0:02:25]}  Bb7 {[%clk 0:02:04]} 15. Nf4 {[%clk 0:02:18]}  Qe7 {[%clk 0:01:56]} 16. d5 {[%clk 0:02:15]}  Bxb2 {[%clk 0:01:42]} 17. Qxb2 {[%clk 0:02:15]}  e5 {[%clk 0:01:40]} 18. Ne6 {[%clk 0:02:09]}  Rf6 {[%clk 0:01:29]} 19. b4 {[%clk 0:01:50]}  Rxe6 {[%clk 0:01:28]} 20. dxe6 {[%clk 0:01:49]}  Qxe6 {[%clk 0:01:29]} 21. Rac1 {[%clk 0:01:39]}  axb4 {[%clk 0:01:27]} 22. axb4 {[%clk 0:01:40]}  Rf8 {[%clk 0:01:05]} 23. Qc2 {[%clk 0:01:34]}  Kh8 {[%clk 0:00:59]} 24. Ra1 {[%clk 0:01:33]}  h5 {[%clk 0:00:36]} 25. Ra7 {[%clk 0:01:32]}  Rb8 {[%clk 0:00:34]} 26. h4 {[%clk 0:01:25]}  Qf6 {[%clk 0:00:25]} 27. Qc1 {[%clk 0:01:20]}  Qf7 {[%clk 0:00:12]} 28. Kh2 {[%clk 0:01:09]}  Bc8 {[%clk 0:00:05]} 29. Qe3 {[%clk 0:01:00]}  Nf6 {[%clk 0:00:04]} 30. Kg1 {[%clk 0:00:57]}  Ng4 {[%clk 0:00:03]} 31. Qg5 {[%clk 0:00:57]}  f4 {[%clk 0:00:00]} 32. Qd8+ {[%clk 0:00:56]} 1-0


[Site "https://www.chess.com"]